[Event "Live Chess"]
[Site "Chess.com"]
[Date "2010.12.11"]
[Round "-"]
[White "hipposcottimus"]
[Black "ChessNut71"]
[Result "0-1"]
[CurrentPosition "6k1/p1p2pp1/6Pp/8/2p5/1P4R1/P1P3PK/R1r4r w - -"]
[Timezone "UTC"]
[ECO "C41"]
[ECOUrl "https://www.chess.com/openings/Philidor-Defense-3.Bc4-Nf6"]
[UTCDate "2010.12.11"]
[UTCTime "01:37:36"]
[WhiteElo "1661"]
[BlackElo "1519"]
[TimeControl "60"]
[Termination "ChessNut71 won by checkmate"]
[StartTime "01:37:36"]
[EndDate "2010.12.11"]
[EndTime "01:38:44"]
[Link "https://www.chess.com/game/live/76085338"]

1. e4 {[%clk 0:01:00]} 1... e5 {[%clk 0:01:00]} 2. Nf3 {[%clk 0:00:59.7]} 2... d6 {[%clk 0:00:57.8]} 3. Bc4 {[%clk 0:00:59.2]} 3... Nf6 {[%clk 0:00:56]} 4. d4 {[%clk 0:00:58.9]} 4... exd4 {[%clk 0:00:54.6]} 5. Nxd4 {[%clk 0:00:57.3]} 5... Be7 {[%clk 0:00:54.6]} 6. Nc3 {[%clk 0:00:56.6]} 6... O-O {[%clk 0:00:53.4]} 7. f4 {[%clk 0:00:56.3]} 7... h6 {[%clk 0:00:53.3]} 8. O-O {[%clk 0:00:55.8]} 8... b5 {[%clk 0:00:51.7]} 9. e5 {[%clk 0:00:55.5]} 9... bxc4 {[%clk 0:00:50.2]} 10. exf6 {[%clk 0:00:55.2]} 10... Bxf6 {[%clk 0:00:49.2]} 11. Nf3 {[%clk 0:00:54.8]} 11... d5 {[%clk 0:00:47.8]} 12. Nxd5 {[%clk 0:00:52.4]} 12... Nc6 {[%clk 0:00:45.6]} 13. Nxf6+ {[%clk 0:00:51.7]} 13... Qxf6 {[%clk 0:00:44.7]} 14. f5 {[%clk 0:00:49.8]} 14... Bxf5 {[%clk 0:00:42.2]} 15. Qe2 {[%clk 0:00:49.4]} 15... Bg4 {[%clk 0:00:40.8]} 16. Qf2 {[%clk 0:00:49]} 16... Bxf3 {[%clk 0:00:38.7]} 17. Qxf3 {[%clk 0:00:48.6]} 17... Qxf3 {[%clk 0:00:37.6]} 18. Rxf3 {[%clk 0:00:48.3]} 18... Ne5 {[%clk 0:00:36.9]} 19. Rh3 {[%clk 0:00:47.7]} 19... Ng6 {[%clk 0:00:34.5]} 20. Rg3 {[%clk 0:00:47.4]} 20... Rfe8 {[%clk 0:00:33.3]} 21. h4 {[%clk 0:00:47.1]} 21... Rad8 {[%clk 0:00:31.1]} 22. Kh2 {[%clk 0:00:46.7]} 22... Rd1 {[%clk 0:00:28.9]} 23. b3 {[%clk 0:00:46.2]} 23... Ree1 {[%clk 0:00:27.6]} 24. h5 {[%clk 0:00:42.7]} 24... Rxc1 {[%clk 0:00:26.5]} 25. hxg6 {[%clk 0:00:41.6]} 25... Rh1# {[%clk 0:00:23.8]} 0-1

[Event "Live Chess"]
[Site "Chess.com"]
[Date "2010.12.11"]
[Round "-"]
[White "luisetemadrid"]
[Black "hipposcottimus"]
[Result "1-0"]
[CurrentPosition "1kQ5/pp5p/5q1p/3p1B1b/3P4/P6P/1P4P1/2R3K1 b - -"]
[Timezone "UTC"]
[ECO "D10"]
[ECOUrl "https://www.chess.com/openings/Slav-Defense-3.Nc3"]
[UTCDate "2010.12.11"]
[UTCTime "00:58:42"]
[WhiteElo "1692"]
[BlackElo "1672"]
[TimeControl "60"]
[Termination "luisetemadrid won by checkmate"]
[StartTime "00:58:42"]
[EndDate "2010.12.11"]
[EndTime "01:00:50"]
[Link "https://www.chess.com/game/live/76076925"]

1. d4 {[%clk 0:01:00]} 1... d5 {[%clk 0:01:00]} 2. c4 {[%clk 0:00:58.7]} 2... c6 {[%clk 0:00:59.8]} 3. Nc3 {[%clk 0:00:56.6]} 3... Nd7 {[%clk 0:00:59.2]} 4. Nf3 {[%clk 0:00:56.1]} 4... e6 {[%clk 0:00:58.9]} 5. e4 {[%clk 0:00:54.9]} 5... Ngf6 {[%clk 0:00:58.2]} 6. e5 {[%clk 0:00:54.1]} 6... Ng4 {[%clk 0:00:57.6]} 7. h3 {[%clk 0:00:50.7]} 7... Nh6 {[%clk 0:00:44.4]} 8. Bxh6 {[%clk 0:00:50.1]} 8... gxh6 {[%clk 0:00:44.1]} 9. Qd2 {[%clk 0:00:48.5]} 9... Qa5 {[%clk 0:00:43.8]} 10. cxd5 {[%clk 0:00:43]} 10... Bb4 {[%clk 0:00:43.3]} 11. dxe6 {[%clk 0:00:41.5]} 11... fxe6 {[%clk 0:00:41.7]} 12. Bd3 {[%clk 0:00:40.4]} 12... Nb6 {[%clk 0:00:40.4]} 13. Rc1 {[%clk 0:00:32.8]} 13... Nd5 {[%clk 0:00:40]} 14. O-O {[%clk 0:00:26.2]} 14... Bd7 {[%clk 0:00:38.9]} 15. Qc2 {[%clk 0:00:22.9]} 15... O-O-O {[%clk 0:00:37.6]} 16. Nxd5 {[%clk 0:00:21.5]} 16... exd5 {[%clk 0:00:35.4]} 17. a3 {[%clk 0:00:20.9]} 17... Be7 {[%clk 0:00:31.4]} 18. Rfe1 {[%clk 0:00:18.7]} 18... Qc7 {[%clk 0:00:30.9]} 19. e6 {[%clk 0:00:16.7]} 19... Be8 {[%clk 0:00:30.3]} 20. Ne5 {[%clk 0:00:15.3]} 20... Bf6 {[%clk 0:00:24.7]} 21. f4 {[%clk 0:00:13.8]} 21... Bxe5 {[%clk 0:00:23.1]} 22. Rxe5 {[%clk 0:00:12.7]} 22... Bg6 {[%clk 0:00:22.4]} 23. f5 {[%clk 0:00:11.8]} 23... Bh5 {[%clk 0:00:18]} 24. f6 {[%clk 0:00:10.7]} 24... Rd6 {[%clk 0:00:14.9]} 25. Bf5 {[%clk 0:00:09.7]} 25... c5 {[%clk 0:00:13.1]} 26. e7+ {[%clk 0:00:08]} 26... Kb8 {[%clk 0:00:07.8]} 27. e8=Q+ {[%clk 0:00:06.6]} 27... Rxe8 {[%clk 0:00:05.7]} 28. Rxe8+ {[%clk 0:00:06.1]} 28... Rd8 {[%clk 0:00:05.4]} 29. Rxd8+ {[%clk 0:00:05.5]} 29... Qxd8 {[%clk 0:00:04.6]} 30. Qxc5 {[%clk 0:00:05]} 30... Qxf6 {[%clk 0:00:03.8]} 31. Qc8# {[%clk 0:00:04.3]} 1-0

[Event "Live Chess"]
[Site "Chess.com"]
[Date "2010.12.11"]
[Round "-"]
[White "hipposcottimus"]
[Black "luisetemadrid"]
[Result "1-0"]
[CurrentPosition "r4rk1/3p1ppQ/p3p3/2pb3p/5q2/8/PPB2P1P/3RR1K1 b - -"]
[Timezone "UTC"]
[ECO "B20"]
[ECOUrl "https://www.chess.com/openings/Sicilian-Defense"]
[UTCDate "2010.12.11"]
[UTCTime "00:56:45"]
[WhiteElo "1680"]
[BlackElo "1667"]
[TimeControl "60"]
[Termination "hipposcottimus won by checkmate"]
[StartTime "00:56:45"]
[EndDate "2010.12.11"]
[EndTime "00:58:13"]
[Link "https://www.chess.com/game/live/76076519"]

1. e4 {[%clk 0:01:00]} 1... c5 {[%clk 0:01:00]} 2. Bb5 {[%clk 0:00:58.5]} 2... e6 {[%clk 0:00:59.5]} 3. Nf3 {[%clk 0:00:56.3]} 3... a6 {[%clk 0:00:59.1]} 4. Be2 {[%clk 0:00:55]} 4... b5 {[%clk 0:00:58.3]} 5. d4 {[%clk 0:00:54.6]} 5... Bb7 {[%clk 0:00:57.8]} 6. d5 {[%clk 0:00:53]} 6... Nf6 {[%clk 0:00:56.8]} 7. e5 {[%clk 0:00:51.3]} 7... Nxd5 {[%clk 0:00:55.5]} 8. O-O {[%clk 0:00:48]} 8... Nc6 {[%clk 0:00:54.6]} 9. c4 {[%clk 0:00:46.3]} 9... bxc4 {[%clk 0:00:52.8]} 10. Bxc4 {[%clk 0:00:46]} 10... Nb6 {[%clk 0:00:52.5]} 11. Bb3 {[%clk 0:00:44.7]} 11... Qc7 {[%clk 0:00:51.9]} 12. Bc2 {[%clk 0:00:44.5]} 12... Nxe5 {[%clk 0:00:49.6]} 13. Nc3 {[%clk 0:00:44.3]} 13... Nxf3+ {[%clk 0:00:46.9]} 14. gxf3 {[%clk 0:00:43.5]} 14... Bd6 {[%clk 0:00:44.1]} 15. f4 {[%clk 0:00:39.4]} 15... Bxf4 {[%clk 0:00:42.2]} 16. Bxf4 {[%clk 0:00:38]} 16... Qxf4 {[%clk 0:00:41]} 17. Qd3 {[%clk 0:00:34]} 17... h5 {[%clk 0:00:35.2]} 18. Rad1 {[%clk 0:00:32]} 18... Nd5 {[%clk 0:00:26.5]} 19. Nxd5 {[%clk 0:00:30.4]} 19... Bxd5 {[%clk 0:00:26]} 20. Rfe1 {[%clk 0:00:30.1]} 20... O-O {[%clk 0:00:14]} 21. Qh7# {[%clk 0:00:28.3]} 1-0

[Event "Live Chess"]
[Site "Chess.com"]
[Date "2010.12.11"]
[Round "-"]
[White "hipposcottimus"]
[Black "sailing"]
[Result "1-0"]
[CurrentPosition "5r2/p4Qbk/8/7R/8/4P3/PPP3PP/RN4K1 b - -"]
[Timezone "UTC"]
[ECO "C41"]
[ECOUrl "https://www.chess.com/openings/Philidor-Defense-3.d4-Bg4"]
[UTCDate "2010.12.11"]
[UTCTime "00:52:15"]
[WhiteElo "1672"]
[BlackElo "1531"]
[TimeControl "60"]
[Termination "hipposcottimus won by checkmate"]
[StartTime "00:52:15"]
[EndDate "2010.12.11"]
[EndTime "00:54:10"]
[Link "https://www.chess.com/game/live/76075539"]

1. e4 {[%clk 0:01:00]} 1... e5 {[%clk 0:01:00]} 2. Nf3 {[%clk 0:00:58.6]} 2... d6 {[%clk 0:00:57.4]} 3. d4 {[%clk 0:00:57.6]} 3... Bg4 {[%clk 0:00:56.4]} 4. Qd3 {[%clk 0:00:56.7]} 4... Bxf3 {[%clk 0:00:54.3]} 5. Qxf3 {[%clk 0:00:55.6]} 5... exd4 {[%clk 0:00:52.7]} 6. Bc4 {[%clk 0:00:55.4]} 6... Qf6 {[%clk 0:00:51.9]} 7. Qb3 {[%clk 0:00:52.6]} 7... Nc6 {[%clk 0:00:49.1]} 8. Qxb7 {[%clk 0:00:51]} 8... Rd8 {[%clk 0:00:42.6]} 9. Qxc6+ {[%clk 0:00:45.4]} 9... Rd7 {[%clk 0:00:41.1]} 10. Qa8+ {[%clk 0:00:42]} 10... Rd8 {[%clk 0:00:39.6]} 11. Bb5+ {[%clk 0:00:41.7]} 11... Ke7 {[%clk 0:00:38.7]} 12. Qc6 {[%clk 0:00:36.3]} 12... Qe6 {[%clk 0:00:36.2]} 13. Qxc7+ {[%clk 0:00:35.3]} 13... Rd7 {[%clk 0:00:32]} 14. Bxd7 {[%clk 0:00:32]} 14... Qxe4+ {[%clk 0:00:30.4]} 15. Be3 {[%clk 0:00:18.9]} 15... dxe3 {[%clk 0:00:27.4]} 16. Bc6+ {[%clk 0:00:17.5]} 16... Kf6 {[%clk 0:00:25.6]} 17. Bxe4 {[%clk 0:00:16.7]} 17... Ne7 {[%clk 0:00:24.7]} 18. fxe3 {[%clk 0:00:15.7]} 18... g6 {[%clk 0:00:22]} 19. O-O+ {[%clk 0:00:15.4]} 19... Kg7 {[%clk 0:00:20.8]} 20. Qxd6 {[%clk 0:00:15.2]} 20... Kg8 {[%clk 0:00:19.1]} 21. Qe5 {[%clk 0:00:14.8]} 21... h5 {[%clk 0:00:17.5]} 22. Qc3 {[%clk 0:00:14.6]} 22... Bg7 {[%clk 0:00:15.8]} 23. Qc4 {[%clk 0:00:14.4]} 23... Kh7 {[%clk 0:00:14]} 24. Qxf7 {[%clk 0:00:13.5]} 24... Nf5 {[%clk 0:00:11.4]} 25. Bxf5 {[%clk 0:00:11.4]} 25... gxf5 {[%clk 0:00:09.8]} 26. Rxf5 {[%clk 0:00:11]} 26... Rf8 {[%clk 0:00:08.6]} 27. Rxh5# {[%clk 0:00:10.1]} 1-0

[Event "Live Chess"]
[Site "Chess.com"]
[Date "2010.12.11"]
[Round "-"]
[White "leonardodavinci1964"]
[Black "hipposcottimus"]
[Result "0-1"]
[CurrentPosition "r5k1/ppp3pp/2nb2r1/4p3/2P5/1P5b/P2NB1qN/R2Q1R1K w - -"]
[Timezone "UTC"]
[ECO "C44"]
[ECOUrl "https://www.chess.com/openings/Kings-Pawn-Opening-Kings-Knight-Variation-2...Nc6-3.d3-Nf6"]
[UTCDate "2010.12.11"]
[UTCTime "00:49:30"]
[WhiteElo "1484"]
[BlackElo "1667"]
[TimeControl "60"]
[Termination "hipposcottimus won by checkmate"]
[StartTime "00:49:30"]
[EndDate "2010.12.11"]
[EndTime "00:50:34"]
[Link "https://www.chess.com/game/live/76074966"]

1. e4 {[%clk 0:01:00]} 1... e5 {[%clk 0:01:00]} 2. Nf3 {[%clk 0:00:59.6]} 2... Nc6 {[%clk 0:00:59.6]} 3. d3 {[%clk 0:00:59.1]} 3... Nf6 {[%clk 0:00:59.3]} 4. c3 {[%clk 0:00:58.7]} 4... d5 {[%clk 0:00:59]} 5. Bg5 {[%clk 0:00:58.1]} 5... dxe4 {[%clk 0:00:58.5]} 6. Bxf6 {[%clk 0:00:56.8]} 6... Qxf6 {[%clk 0:00:57.8]} 7. dxe4 {[%clk 0:00:55.9]} 7... Bd6 {[%clk 0:00:57.4]} 8. Be2 {[%clk 0:00:55]} 8... Bg4 {[%clk 0:00:57.1]} 9. O-O {[%clk 0:00:54.4]} 9... O-O {[%clk 0:00:54.6]} 10. Nbd2 {[%clk 0:00:52.7]} 10... Be6 {[%clk 0:00:51.7]} 11. Qc2 {[%clk 0:00:51.6]} 11... Qf4 {[%clk 0:00:48.9]} 12. b3 {[%clk 0:00:47.9]} 12... f5 {[%clk 0:00:46.5]} 13. exf5 {[%clk 0:00:45]} 13... Bxf5 {[%clk 0:00:45.7]} 14. Qd1 {[%clk 0:00:42.8]} 14... Rf6 {[%clk 0:00:45.3]} 15. c4 {[%clk 0:00:41.6]} 15... Rg6 {[%clk 0:00:44.8]} 16. h3 {[%clk 0:00:37.6]} 16... Bxh3 {[%clk 0:00:43.7]} 17. Nh2 {[%clk 0:00:35.6]} 17... Bxg2 {[%clk 0:00:42]} 18. Re1 {[%clk 0:00:33.4]} 18... Bh3+ {[%clk 0:00:40.5]} 19. Kh1 {[%clk 0:00:31]} 19... Qxf2 {[%clk 0:00:39]} 20. Rf1 {[%clk 0:00:28.4]} 20... Qg2# {[%clk 0:00:38.2]} 0-1

[Event "Live Chess"]
[Site "Chess.com"]
[Date "2010.12.11"]
[Round "-"]
[White "my2groovyshoes"]
[Black "hipposcottimus"]
[Result "0-1"]
[CurrentPosition "8/6k1/R7/7R/1p6/3P3K/PP5P/8 w - -"]
[Timezone "UTC"]
[ECO "C20"]
[ECOUrl "https://www.chess.com/openings/Kings-Pawn-Opening-Napoleon-Attack"]
[UTCDate "2010.12.11"]
[UTCTime "00:44:20"]
[WhiteElo "1562"]
[BlackElo "1663"]
[TimeControl "60"]
[Termination "hipposcottimus won on time"]
[StartTime "00:44:20"]
[EndDate "2010.12.11"]
[EndTime "00:46:36"]
[Link "https://www.chess.com/game/live/76073903"]

1. e4 {[%clk 0:01:00]} 1... e5 {[%clk 0:01:00]} 2. Qf3 {[%clk 0:00:59.2]} 2... Nc6 {[%clk 0:00:59.4]} 3. Bc4 {[%clk 0:00:57.7]} 3... Nf6 {[%clk 0:00:58]} 4. c3 {[%clk 0:00:56.6]} 4... Nd4 {[%clk 0:00:57.7]} 5. cxd4 {[%clk 0:00:55.5]} 5... d5 {[%clk 0:00:56.4]} 6. Bxd5 {[%clk 0:00:54]} 6... Bg4 {[%clk 0:00:55.2]} 7. Qg3 {[%clk 0:00:50.4]} 7... Nxd5 {[%clk 0:00:49.2]} 8. Qxe5+ {[%clk 0:00:48.8]} 8... Ne7 {[%clk 0:00:47.7]} 9. d5 {[%clk 0:00:46.5]} 9... Bd7 {[%clk 0:00:47.2]} 10. Nc3 {[%clk 0:00:44]} 10... f6 {[%clk 0:00:46.8]} 11. Qd4 {[%clk 0:00:41.6]} 11... Ng6 {[%clk 0:00:45.8]} 12. d3 {[%clk 0:00:37.9]} 12... c5 {[%clk 0:00:44.9]} 13. Qe3 {[%clk 0:00:36.4]} 13... Bd6 {[%clk 0:00:43.3]} 14. f3 {[%clk 0:00:34.8]} 14... O-O {[%clk 0:00:43]} 15. Nh3 {[%clk 0:00:32.4]} 15... Re8 {[%clk 0:00:42]} 16. Nf4 {[%clk 0:00:31.4]} 16... f5 {[%clk 0:00:41.6]} 17. Nxg6 {[%clk 0:00:30.3]} 17... hxg6 {[%clk 0:00:41.3]} 18. Qf4 {[%clk 0:00:28.1]} 18... fxe4 {[%clk 0:00:40.9]} 19. Qxd6 {[%clk 0:00:27.1]} 19... exf3+ {[%clk 0:00:38.3]} 20. Kf2 {[%clk 0:00:25.4]} 20... fxg2 {[%clk 0:00:37.7]} 21. Kxg2 {[%clk 0:00:24.6]} 21... Qg5+ {[%clk 0:00:33]} 22. Bxg5 {[%clk 0:00:22.3]} 22... Re2+ {[%clk 0:00:32.7]} 23. Kg3 {[%clk 0:00:20.4]} 23... Bh3 {[%clk 0:00:32.3]} 24. Nxe2 {[%clk 0:00:19.2]} 24... Rd8 {[%clk 0:00:29.4]} 25. Qe7 {[%clk 0:00:18.1]} 25... Re8 {[%clk 0:00:27.9]} 26. Kxh3 {[%clk 0:00:17.6]} 26... Rxe7 {[%clk 0:00:26.9]} 27. Bxe7 {[%clk 0:00:16.4]} 27... Kf7 {[%clk 0:00:26.7]} 28. Rhf1+ {[%clk 0:00:14.9]} 28... Kxe7 {[%clk 0:00:26.2]} 29. Rae1 {[%clk 0:00:13.5]} 29... Kd6 {[%clk 0:00:25.9]} 30. Nd4 {[%clk 0:00:12.6]} 30... Kxd5 {[%clk 0:00:25.5]} 31. Re6 {[%clk 0:00:11.2]} 31... cxd4 {[%clk 0:00:25.2]} 32. Rxg6 {[%clk 0:00:09.7]} 32... Kc5 {[%clk 0:00:24]} 33. Rf5+ {[%clk 0:00:08.3]} 33... Kb4 {[%clk 0:00:23.7]} 34. Rg4 {[%clk 0:00:07.4]} 34... b5 {[%clk 0:00:21.3]} 35. Rxd4+ {[%clk 0:00:06.4]} 35... Ka5 {[%clk 0:00:20.1]} 36. Rg4 {[%clk 0:00:06]} 36... Kb6 {[%clk 0:00:19.5]} 37. Rf7 {[%clk 0:00:05.2]} 37... Ka5 {[%clk 0:00:19.1]} 38. Rg6 {[%clk 0:00:04.6]} 38... Kb4 {[%clk 0:00:17.8]} 39. Rgxg7 {[%clk 0:00:04.3]} 39... Kc5 {[%clk 0:00:17]} 40. Rf4 {[%clk 0:00:03.9]} 40... Kd5 {[%clk 0:00:15.7]} 41. Rg5+ {[%clk 0:00:03.6]} 41... Ke6 {[%clk 0:00:14.9]} 42. Rff5 {[%clk 0:00:02.6]} 42... a6 {[%clk 0:00:11.8]} 43. Rh5 {[%clk 0:00:02.3]} 43... a5 {[%clk 0:00:09.3]} 44. Rfg5 {[%clk 0:00:02]} 44... b4 {[%clk 0:00:08.5]} 45. Rxa5 {[%clk 0:00:00.9]} 45... Kf7 {[%clk 0:00:07.8]} 46. Ra6 {[%clk 0:00:00.5]} 46... Kg7 {[%clk 0:00:06.8]} 0-1

[Event "Live Chess"]
[Site "Chess.com"]
[Date "2010.12.11"]
[Round "-"]
[White "hipposcottimus"]
[Black "my2groovyshoes"]
[Result "0-1"]
[CurrentPosition "6k1/p4ppp/1p6/4P3/5P2/PP1r1KP1/2q4P/8 w - -"]
[Timezone "UTC"]
[ECO "C40"]
[ECOUrl "https://www.chess.com/openings/Kings-Pawn-Opening-Kings-Knight-McConnell-Defense-3.Bc4"]
[UTCDate "2010.12.11"]
[UTCTime "00:41:41"]
[WhiteElo "1657"]
[BlackElo "1568"]
[TimeControl "60"]
[Termination "my2groovyshoes won on time"]
[StartTime "00:41:41"]
[EndDate "2010.12.11"]
[EndTime "00:43:53"]
[Link "https://www.chess.com/game/live/76073296"]

1. e4 {[%clk 0:01:00]} 1... e5 {[%clk 0:01:00]} 2. Nf3 {[%clk 0:00:59.5]} 2... Qf6 {[%clk 0:00:59.1]} 3. Bc4 {[%clk 0:00:59.2]} 3... Bc5 {[%clk 0:00:58]} 4. Nc3 {[%clk 0:00:58.2]} 4... Nc6 {[%clk 0:00:57.4]} 5. Nd5 {[%clk 0:00:57.3]} 5... Qd6 {[%clk 0:00:56]} 6. d4 {[%clk 0:00:52.4]} 6... Nxd4 {[%clk 0:00:54.7]} 7. Nxd4 {[%clk 0:00:50.9]} 7... exd4 {[%clk 0:00:53.9]} 8. O-O {[%clk 0:00:47.2]} 8... Ne7 {[%clk 0:00:51.7]} 9. Re1 {[%clk 0:00:46.9]} 9... Nxd5 {[%clk 0:00:50.1]} 10. e5 {[%clk 0:00:46.7]} 10... Qc6 {[%clk 0:00:47.9]} 11. c3 {[%clk 0:00:40.4]} 11... O-O {[%clk 0:00:46.8]} 12. cxd4 {[%clk 0:00:39.6]} 12... Bb4 {[%clk 0:00:45]} 13. Re2 {[%clk 0:00:35.6]} 13... Qxc4 {[%clk 0:00:43.5]} 14. a3 {[%clk 0:00:33.5]} 14... Be7 {[%clk 0:00:39.7]} 15. b3 {[%clk 0:00:33.1]} 15... Qc6 {[%clk 0:00:38]} 16. Bf4 {[%clk 0:00:29.8]} 16... Nc3 {[%clk 0:00:37.5]} 17. Qe1 {[%clk 0:00:28.9]} 17... Nxe2+ {[%clk 0:00:36.5]} 18. Qxe2 {[%clk 0:00:28.7]} 18... Qc3 {[%clk 0:00:35]} 19. Rc1 {[%clk 0:00:28.5]} 19... Qb2 {[%clk 0:00:33.8]} 20. Rxc7 {[%clk 0:00:27.3]} 20... Qxe2 {[%clk 0:00:32.6]} 21. g3 {[%clk 0:00:25.5]} 21... Qe1+ {[%clk 0:00:31.6]} 22. Kg2 {[%clk 0:00:25]} 22... d6 {[%clk 0:00:30.4]} 23. Be3 {[%clk 0:00:24.7]} 23... dxe5 {[%clk 0:00:28.9]} 24. dxe5 {[%clk 0:00:24.3]} 24... Bd6 {[%clk 0:00:28.1]} 25. Rc1 {[%clk 0:00:22]} 25... Qa5 {[%clk 0:00:24.4]} 26. Rd1 {[%clk 0:00:21.4]} 26... Qb5 {[%clk 0:00:23.4]} 27. Rxd6 {[%clk 0:00:18.6]} 27... b6 {[%clk 0:00:21.2]} 28. Rd2 {[%clk 0:00:18.2]} 28... Bb7+ {[%clk 0:00:20.4]} 29. f3 {[%clk 0:00:15.5]} 29... Rfe8 {[%clk 0:00:19.9]} 30. Kf2 {[%clk 0:00:15.2]} 30... Qc6 {[%clk 0:00:18.8]} 31. f4 {[%clk 0:00:14.8]} 31... Qf3+ {[%clk 0:00:17.7]} 32. Ke1 {[%clk 0:00:13.9]} 32... Qh1+ {[%clk 0:00:15.2]} 33. Ke2 {[%clk 0:00:11.8]} 33... Bf3+ {[%clk 0:00:14.8]} 34. Kd3 {[%clk 0:00:11.2]} 34... Be4+ {[%clk 0:00:13.9]} 35. Ke2 {[%clk 0:00:10.1]} 35... Rad8 {[%clk 0:00:13]} 36. Rxd8 {[%clk 0:00:08.1]} 36... Rxd8 {[%clk 0:00:12]} 37. Bd2 {[%clk 0:00:07.7]} 37... Qg2+ {[%clk 0:00:09.5]} 38. Ke3 {[%clk 0:00:07]} 38... Qxd2+ {[%clk 0:00:08.5]} 39. Kxe4 {[%clk 0:00:03.1]} 39... Qc2+ {[%clk 0:00:07.8]} 40. Kf3 {[%clk 0:00:01.7]} 40... Rd3+ {[%clk 0:00:06.3]} 0-1

[Event "Live Chess"]
[Site "Chess.com"]
[Date "2010.12.11"]
[Round "-"]
[White "hipposcottimus"]
[Black "mtsdfghjkl"]
[Result "1-0"]
[CurrentPosition "2N1R3/2P2kbp/8/1p6/p4p2/2N5/PPB3PP/6K1 b - -"]
[Timezone "UTC"]
[ECO "C40"]
[ECOUrl "https://www.chess.com/openings/Kings-Pawn-Opening-Kings-Knight-Damiano-Defense"]
[UTCDate "2010.12.11"]
[UTCTime "00:38:43"]
[WhiteElo "1666"]
[BlackElo "1343"]
[TimeControl "60"]
[Termination "hipposcottimus won on time"]
[StartTime "00:38:43"]
[EndDate "2010.12.11"]
[EndTime "00:40:47"]
[Link "https://www.chess.com/game/live/76072610"]

1. e4 {[%clk 0:01:00]} 1... e5 {[%clk 0:01:00]} 2. Nf3 {[%clk 0:00:59.6]} 2... f6 {[%clk 0:00:59.7]} 3. Bc4 {[%clk 0:00:59.3]} 3... a6 {[%clk 0:00:58.9]} 4. d4 {[%clk 0:00:59]} 4... c6 {[%clk 0:00:58.3]} 5. Bb3 {[%clk 0:00:58.7]} 5... d6 {[%clk 0:00:57.4]} 6. dxe5 {[%clk 0:00:58.3]} 6... dxe5 {[%clk 0:00:56.2]} 7. Qxd8+ {[%clk 0:00:57.9]} 7... Kxd8 {[%clk 0:00:55.7]} 8. c4 {[%clk 0:00:54.4]} 8... Nd7 {[%clk 0:00:55.2]} 9. c5 {[%clk 0:00:54]} 9... Ne7 {[%clk 0:00:54]} 10. Be3 {[%clk 0:00:53.5]} 10... g6 {[%clk 0:00:49.3]} 11. O-O {[%clk 0:00:52.7]} 11... Bg7 {[%clk 0:00:48.9]} 12. Nfd2 {[%clk 0:00:50]} 12... b5 {[%clk 0:00:43]} 13. Nc3 {[%clk 0:00:49.6]} 13... a5 {[%clk 0:00:41.5]} 14. f4 {[%clk 0:00:45.9]} 14... a4 {[%clk 0:00:40.8]} 15. Bc2 {[%clk 0:00:44.5]} 15... Bb7 {[%clk 0:00:33.5]} 16. fxe5 {[%clk 0:00:42.7]} 16... fxe5 {[%clk 0:00:32.5]} 17. Nf3 {[%clk 0:00:42]} 17... Bh6 {[%clk 0:00:29.7]} 18. Bf2 {[%clk 0:00:40.7]} 18... g5 {[%clk 0:00:28.6]} 19. Bg3 {[%clk 0:00:39.8]} 19... Ng6 {[%clk 0:00:26.9]} 20. Rfd1 {[%clk 0:00:34.7]} 20... Nf4 {[%clk 0:00:25.6]} 21. Nxe5 {[%clk 0:00:32.9]} 21... Bc8 {[%clk 0:00:21.9]} 22. Nxc6+ {[%clk 0:00:30.1]} 22... Ke8 {[%clk 0:00:20.2]} 23. e5 {[%clk 0:00:26.9]} 23... Nxe5 {[%clk 0:00:18.4]} 24. Nxe5 {[%clk 0:00:25.6]} 24... Rb8 {[%clk 0:00:17.3]} 25. c6 {[%clk 0:00:24]} 25... Rb6 {[%clk 0:00:16.7]} 26. Bxf4 {[%clk 0:00:19.7]} 26... gxf4 {[%clk 0:00:14.8]} 27. Re1 {[%clk 0:00:19.4]} 27... Kf8 {[%clk 0:00:11.3]} 28. Nd7+ {[%clk 0:00:17.2]} 28... Kf7 {[%clk 0:00:09.2]} 29. Nxb6 {[%clk 0:00:15.6]} 29... Re8 {[%clk 0:00:08.3]} 30. Nd7 {[%clk 0:00:15]} 30... Rxe1+ {[%clk 0:00:06.6]} 31. Rxe1 {[%clk 0:00:14.7]} 31... Kg7 {[%clk 0:00:05.1]} 32. Nb6 {[%clk 0:00:13.6]} 32... Kg8 {[%clk 0:00:04.3]} 33. Nxc8 {[%clk 0:00:12.9]} 33... Bg7 {[%clk 0:00:03.6]} 34. Re8+ {[%clk 0:00:11.9]} 34... Kf7 {[%clk 0:00:02]} 35. c7 {[%clk 0:00:11.6]} 1-0